bitfinex/quotes_SOLUSD_20240814
["timestamp","ask_amount","ask_price","bid_price","bid_amount"]
[1723636244323,30.44,148.73,148.63,22.7865]
[1723636244517,30.44,148.73,148.64,22.7865]
[1723636246732,30.44,148.73,148.65,45.12549]
[1723636246934,30.44,148.73,148.65,45.0]
[1723636248426,30.44,148.73,148.64,22.7865]
[1723636251315,45.25098,148.72,148.64,22.7865]
[1723636251525,30.56549,148.71,148.64,22.7865]
[1723636252140,0.12549,148.7,148.64,22.7865]
[1723636254217,30.56549,148.71,148.64,22.7865]
[1723636256431,0.12549,148.7,148.64,22.7865]
[1723636257017,0.25098,148.71,148.64,22.7865]
[1723636257218,0.12549,148.7,148.64,22.7865]
[1723636258242,45.0,148.72,148.64,22.7865]
[1723636258416,30.44,148.73,148.64,22.7865]
[1723636258619,46.6598,148.75,148.64,22.7865]
[1723636259439,16.2198,148.75,148.64,22.7865]
[1723636259642,46.6598,148.75,148.64,22.7865]
[1723636259815,0.12549,148.74,148.64,22.7865]
[1723636260020,30.44,148.73,148.64,22.7865]
[1723636261620,0.12549,148.7,148.64,22.7865]
[1723636261820,30.44,148.71,148.64,22.7865]
[1723636264621,30.44,148.73,148.64,22.7865]
[1723636264824,0.37647,148.74,148.64,22.7865]
[1723636265044,0.25098,148.74,148.64,22.7865]
[1723636266750,45.25098,148.74,148.64,22.7865]
[1723636267962,30.56549,148.73,148.64,22.7865]
[1723636268128,30.44,148.71,148.64,22.7865]
[1723636269372,0.50196,148.7,148.64,22.7865]
[1723636269863,30.44,148.71,148.64,22.7865]
[1723636271129,0.25098,148.7,148.64,22.7865]
[1723636271834,30.44,148.69,148.64,22.7865]
[1723636272438,30.44,148.67,148.64,22.7865]
[1723636273559,30.44,148.67,148.61,0.8445855]
[1723636274344,0.12549,148.66,148.61,0.8445855]
[1723636274546,0.12549,148.64,148.61,0.8445855]
[1723636274733,30.44,148.63,148.61,0.8445855]
[1723636275162,30.44,148.68,148.61,0.8445855]
[1723636275628,0.12549,148.69,148.61,0.8445855]
[1723636275828,30.44,148.72,148.61,0.8445855]
[1723636276139,30.44,148.74,148.62,22.432]
[1723636276339,24.7987938,148.76,148.62,22.432]
[1723636276340,30.44,148.76,148.64,22.432]
[1723636276563,30.44,148.76,148.64,52.872]
[1723636276750,30.44,148.74,148.64,22.432]
[1723636279855,30.44,148.74,148.65,45.12549]
[1723636280367,30.44,148.74,148.64,22.432]
[1723636281363,0.12549,148.73,148.64,22.432]
[1723636281674,30.44,148.72,148.64,22.432]
[1723636282579,0.12549,148.73,148.64,22.432]
[1723636283074,0.25098,148.73,148.64,22.432]
[1723636283379,0.25098,148.72,148.64,22.432]
[1723636284060,0.25098,148.73,148.64,22.432]
[1723636285457,45.25098,148.74,148.64,22.432]
[1723636285649,0.12549,148.74,148.64,22.432]
[1723636285858,0.25098,148.74,148.64,22.432]
[1723636286057,30.44,148.75,148.65,0.12549]
[1723636286356,42.55889172,148.77,148.66,52.7437]
[1723636286778,12.11889172,148.76,148.66,52.7437]
[1723636287085,12.11889172,148.76,148.67,45.0]
[1723636287381,12.11646921,148.76,148.67,45.12549]
[1723636287579,42.55646921,148.77,148.67,45.12549]
[1723636287780,12.11646921,148.77,148.67,45.12549]
[1723636288077,12.11646921,148.78,148.67,45.12549]
[1723636288683,0.25098,148.77,148.67,45.12549]
[1723636289058,0.12549,148.77,148.67,45.12549]
[1723636289276,0.12549,148.76,148.66,22.3037]
[1723636289449,30.44,148.73,148.66,22.3037]
[1723636290054,30.44,148.71,148.66,22.3037]
[1723636290591,12.2420706,148.74,148.66,22.3037]
[1723636290592,30.56549,148.73,148.66,22.3037]
[1723636291482,30.44,148.73,148.66,22.3037]
[1723636293081,42.5589099,148.73,148.66,22.3037]
[1723636293255,12.1189099,148.74,148.66,22.3037]
[1723636293455,30.44,148.75,148.66,22.3037]
[1723636293657,42.5589099,148.75,148.66,22.3037]
[1723636294494,30.44,148.75,148.66,22.3037]
[1723636294657,42.5589099,148.75,148.66,22.3037]
[1723636294857,30.44,148.75,148.66,22.3037]
[1723636295060,42.5589099,148.75,148.66,22.3037]
[1723636295359,30.44,148.75,148.66,22.3037]
[1723636295557,42.5589099,148.75,148.66,22.3037]
[1723636295773,12.1189099,148.74,148.66,22.3037]
[1723636295985,30.44,148.75,148.66,22.3037]
[1723636296189,42.5589099,148.75,148.66,22.3037]
[1723636296487,12.11790858,148.74,148.66,22.3037]
[1723636296986,30.44,148.75,148.66,22.3037]
[1723636297287,42.55790858,148.75,148.66,22.3037]
[1723636297471,30.44,148.75,148.66,22.3037]
[1723636297666,12.11790858,148.76,148.66,22.3037]
[1723636297977,12.11790858,148.78,148.68,22.2871]
[1723636298167,30.44,148.77,148.68,22.2871]
[1723636302186,30.44,148.75,148.68,22.2871]
[1723636305069,30.44,148.77,148.68,22.2871]
[1723636305471,0.37647,148.78,148.68,22.2871]
[1723636305682,0.12549,148.78,148.68,22.2871]
[1723636305887,0.25098,148.78,148.68,22.2871]
[1723636306075,0.25098,148.79,148.69,21.7351]
[1723636306486,0.12549,148.79,148.69,6.2703]
[1723636306690,0.12549,148.79,148.7,15.5834]
[1723636307202,42.55467777,148.8,148.7,15.5834]
[1723636307569,30.44,148.8,148.7,15.5834]
[1723636307770,42.55466289,148.8,148.7,15.5834]
[1723636310595,30.44,148.8,148.7,15.5834]
[1723636311389,42.55466289,148.8,148.7,15.5834]
[1723636311597,30.44,148.8,148.7,15.5834]
[1723636311897,42.55461321,148.8,148.7,15.5834]
[1723636312998,30.44,148.78,148.7,15.5834]
[1723636313204,0.12549,148.79,148.7,15.5834]
[1723636313205,30.44,148.72,148.7,15.5834]
[1723636316498,30.44,148.74,148.7,15.5834]
[1723636317200,0.37647,148.73,148.7,15.5834]
[1723636317505,30.44,148.72,148.7,15.5834]
[1723636318291,0.25098,148.73,148.7,15.5834]
[1723636318495,30.44,148.74,148.7,15.5834]
[1723636319118,0.12549,148.73,148.7,15.5834]
[1723636319307,30.44,148.72,148.7,15.5834]
[1723636320525,30.44,148.74,148.7,15.5834]
[1723636321025,0.12549,148.73,148.7,15.5834]
[1723636321193,0.37647,148.73,148.7,15.5834]
[1723636322394,30.44,148.72,148.66,15.7159]
[1723636322613,30.44,148.7,148.66,15.7159]
[1723636323693,0.12549,148.71,148.66,15.7159]
[1723636323891,12.18,148.7,148.66,15.7159]
[1723636331018,12.18,148.68,148.66,15.7159]
[1723636332748,12.18,148.7,148.66,15.7159]
[1723636334136,0.12549,148.71,148.66,15.7159]
[1723636334332,12.18,148.71,148.66,15.7159]
[1723636337349,12.18,148.69,148.66,15.7159]
[1723636338228,0.37647,148.72,148.66,15.7159]
[1723636338442,12.30549,148.71,148.66,15.7159]
[1723636339952,12.18,148.71,148.66,15.7159]
[1723636340449,258.9,148.85,148.66,15.7159]
[1723636340450,12.18,148.73,148.66,15.7159]
[1723636341644,12.18,148.71,148.66,15.7159]
[1723636341947,0.37647,148.72,148.66,15.7159]
[1723636342147,12.18,148.71,148.66,15.7159]
[1723636342955,0.12549,148.74,148.66,15.7159]
[1723636343155,12.18,148.73,148.66,15.7159]
[1723636343849,12.18,148.71,148.66,15.7159]
[1723636344832,45.12549,148.74,148.66,15.7159]
[1723636345344,12.18,148.74,148.66,15.7159]
[1723636345933,12.11812494,148.78,148.67,6.0958]
[1723636346141,12.18,148.75,148.67,6.0958]
[1723636346440,12.11812494,148.78,148.68,15.1344]
[1723636346650,12.18,148.77,148.68,15.1344]
[1723636346856,12.18,148.75,148.68,15.1344]
[1723636347057,5.55029066,148.79,148.68,15.1344]
[1723636347058,12.18,148.73,148.68,15.1344]
[1723636347552,12.18,148.75,148.68,15.1344]
[1723636348059,0.12549,148.78,148.68,15.1344]
[1723636348241,32.60540812,148.8,148.68,15.1344]
[1723636348242,12.18,148.76,148.68,15.1344]
[1723636348440,12.18,148.78,148.69,51.80068]
[1723636349236,12.18,148.79,148.72,6.1174]
[1723636351450,12.18,148.81,148.73,16.378]
[1723636351771,12.18,148.81,148.74,45.0]
[1723636353164,19.14021906,148.84,148.75,6.3249]
[1723636353381,2.661064,148.85,148.76,16.2398]
[1723636353584,12.18,148.84,148.76,16.2398]
[1723636354287,12.18,148.82,148.76,16.2398]
[1723636355163,12.18,148.83,148.76,16.2398]
[1723636356571,12.11095111,148.88,148.76,16.2398]
[1723636356864,12.18,148.87,148.79,6.2117]
[1723636357362,12.18,148.89,148.81,16.6171]
[1723636357948,12.18,148.89,148.82,6.5382]
[1723636358267,9.5423938,148.93,148.82,6.5382]
[1723636358470,12.18,148.9,148.82,6.5382]
[1723636358971,12.18,148.9,148.83,1.34339511]
[1723636359161,9.5423938,148.93,148.83,1.34339511]
[1723636359363,12.18,148.91,148.84,22.1241]
[1723636359559,12.18,148.91,148.85,1.3432146]
[1723636359753,12.18,148.91,148.86,1.34332235]
[1723636360453,12.18,148.91,148.84,22.1241]
[1723636361978,12.18,148.91,148.85,46.46826265]
[1723636362168,7.02299678,148.95,148.86,1.34268244]
[1723636362375,9.5423938,148.99,148.87,16.77249]
[1723636362668,12.18,148.96,148.87,16.77249]
[1723636362855,12.18,148.96,148.88,1.3426072]
[1723636363053,12.18,148.96,148.87,16.77249]
[1723636363248,48.72,149.03,148.87,16.77249]
[1723636363463,12.18,148.95,148.87,16.77249]
[1723636363951,30.34,148.96,148.87,16.77249]
[1723636365157,30.34,148.94,148.87,16.647]
[1723636366647,30.34,148.96,148.87,16.647]
[1723636368056,0.37647,148.95,148.87,16.647]
[1723636368377,30.34,148.93,148.87,16.647]
[1723636368581,30.71647,148.95,148.87,16.647]
[1723636368877,30.34,148.95,148.87,16.647]
[1723636370967,30.34,148.97,148.89,6.171]
[1723636371474,30.34,148.97,148.9,61.07959]
[1723636375174,30.34,148.97,148.9,15.9541]
[1723636378493,30.34,148.95,148.9,15.9541]
[1723636380286,30.34,148.93,148.9,15.9541]
[1723636383185,30.34,148.95,148.9,15.9541]
[1723636383862,0.12549,148.97,148.9,15.9541]
[1723636383863,12.14,148.93,148.9,15.9541]
[1723636386274,12.14,148.91,148.9,15.9541]
[1723636387678,12.14,148.91,148.86,16.0543]
[1723636387886,12.14,148.89,148.86,16.0543]
[1723636388202,12.14,148.88,148.86,16.0543]
[1723636388502,12.14,148.88,148.85,6.2043]
[1723636388678,12.14,148.86,148.82,22.8404]
[1723636389898,0.37647,148.89,148.82,22.8404]
[1723636390073,12.14,148.86,148.82,22.8404]
[1723636394993,0.12549,148.92,148.82,22.8404]
[1723636395175,12.14,148.88,148.82,22.8404]
[1723636397501,7.02426772,148.93,148.82,22.8404]
[1723636397686,12.14,148.9,148.83,45.12549]
[1723636398372,12.14,148.88,148.82,22.8404]
[1723636404100,12.14,148.9,148.82,22.8404]
[1723636404301,12.14,148.9,148.83,45.12549]
[1723636404993,12.10342701,148.95,148.83,45.12549]
[1723636404994,12.10342701,148.95,148.86,6.6026]
[1723636405194,12.14,148.94,148.86,6.6026]
[1723636405403,12.14,148.92,148.86,6.6026]
[1723636407104,0.12549,148.95,148.86,6.6026]
[1723636407411,12.14,148.88,148.86,6.6026]
[1723636415119,12.14,148.88,148.85,15.5909]
[1723636415324,2.64004166,148.93,148.82,6.3989]
[1723636415325,12.14,148.86,148.82,6.3989]
[1723636418011,48.56,148.89,148.75,6.1391]
[1723636418012,12.14,148.84,148.75,6.1391]
[1723636418209,0.12549,148.85,148.75,6.1391]
[1723636418210,12.14,148.8,148.75,6.1391]
[1723636418898,12.14,148.82,148.75,6.1391]
[1723636420209,12.14,148.8,148.75,6.1391]
[1723636420516,12.14,148.82,148.75,6.1391]
[1723636421919,30.39,148.83,148.75,6.1391]
[1723636423623,9.7933738,148.85,148.75,6.1391]
[1723636423624,0.25098,148.85,148.75,6.1391]
[1723636423826,30.39,148.83,148.75,6.1391]
[1723636425112,28.39,148.83,148.75,6.1391]
[1723636428832,0.50196,148.82,148.75,6.1391]
[1723636429323,0.25098,148.82,148.75,6.1391]
[1723636429734,28.39,148.83,148.75,6.1391]
[1723636430609,30.39,148.85,148.76,15.2562]
[1723636430821,30.39,148.87,148.76,15.50718]
[1723636431022,30.39,148.87,148.77,65.12549]
[1723636431218,30.39,148.87,148.79,15.2562]
[1723636431421,30.39,148.89,148.79,15.2562]
[1723636432415,20.0,148.86,148.75,15.9587]
[1723636432638,30.39,148.79,148.75,15.9587]
[1723636433343,20.0,148.86,148.75,15.9587]
[1723636433344,0.12549,148.86,148.75,15.9587]
[1723636433547,30.39,148.81,148.75,15.9587]
[1723636434721,30.39,148.79,148.75,15.9587]
[1723636437446,0.12549,148.78,148.75,15.9587]
[1723636437653,30.39,148.77,148.74,6.3455]
[1723636440856,30.39,148.75,148.71,16.0782]
[1723636443225,30.39,148.77,148.71,16.0782]
[1723636443836,12.17,148.73,148.68,22.8575]
[1723636444444,12.17,148.75,148.68,22.8575]
[1723636446251,0.12549,148.8,148.68,22.8575]
[1723636446459,12.17,148.76,148.68,22.8575]
[1723636447334,12.17,148.74,148.68,22.8575]
[1723636448469,0.25098,148.75,148.68,22.8575]
[1723636448642,12.17,148.74,148.68,22.8575]
[1723636450247,12.17,148.72,148.68,22.8575]
[1723636452556,0.25098,148.75,148.68,22.8575]
[1723636452874,12.17,148.73,148.68,22.8575]
[1723636453068,12.17,148.71,148.68,22.8575]
[1723636455160,12.17,148.74,148.68,22.8575]
[1723636457469,11.14629336,148.74,148.68,22.8575]
[1723636458262,12.17,148.72,148.68,22.8575]
[1723636462670,0.25098,148.71,148.68,22.8575]
[1723636462839,12.17,148.7,148.68,22.8575]
[1723636463257,12.17,148.7,148.65,15.6784]
[1723636463662,12.17,148.68,148.65,15.6784]
[1723636465538,12.17,148.7,148.65,15.6784]
[1723636466062,12.17,148.71,148.65,15.6784]
[1723636466733,12.17,148.69,148.65,15.6784]
[1723636479189,12.17,148.67,148.65,15.6784]
[1723636486378,12.15059274,148.72,148.65,15.6784]
[1723636486695,12.17,148.66,148.65,15.6784]
[1723636486895,12.12235819,148.72,148.61,16.5025855]
[1723636487137,5.12165859,148.69,148.61,16.5025855]
[1723636487403,12.17,148.65,148.61,16.5025855]
[1723636487702,20.05485134,148.73,148.61,16.5025855]
[1723636487894,12.17,148.66,148.61,16.5025855]
[1723636488401,12.17,148.68,148.61,16.5025855]
[1723636488402,12.17,148.64,148.61,16.5025855]
[1723636490678,12.17,148.62,148.61,16.5025855]
[1723636491394,0.12549,148.67,148.61,0.8445855]
[1723636491395,5.12165859,148.66,148.61,0.8445855]
[1723636491592,12.29549,148.62,148.61,0.8445855]
[1723636491803,45.50196,148.65,148.61,0.8445855]
[1723636491993,12.17,148.63,148.61,0.8445855]
[1723636493000,0.12549,148.62,148.61,0.8445855]
[1723636493201,45.50196,148.62,148.61,0.8445855]
[1723636495909,45.50196,148.62,148.57,16.532]
[1723636495910,50.62361859,148.62,148.57,16.532]
[1723636496095,12.17,148.58,148.57,16.532]
[1723636496306,12.17,148.58,148.53,15.0257]
[1723636496814,12.17,148.57,148.53,15.0257]
[1723636498511,0.12549,148.58,148.53,15.0257]
[1723636498714,12.17,148.56,148.53,15.0257]
[1723636499514,0.12549,148.58,148.53,15.0257]
[1723636499722,12.17,148.56,148.53,15.0257]
[1723636501420,12.17,148.54,148.51,6.0162]
[1723636501600,12.17,148.52,148.49,16.1908]
[1723636502513,9.65228025,148.57,148.49,16.1908]
[1723636502815,12.17,148.54,148.49,16.1908]
[1723636504093,0.12549,148.57,148.49,16.1908]
[1723636504293,12.17,148.55,148.49,16.1908]
[1723636505408,12.17,148.53,148.49,16.1908]
[1723636505720,12.17,148.51,148.49,16.1908]
[1723636509113,12.17,148.51,148.47,6.5512]
[1723636509320,12.17,148.49,148.47,6.5512]
[1723636509516,12.17,148.49,148.46,0.8445855]
[1723636509517,48.68,148.54,148.46,0.8445855]
[1723636509722,12.17,148.5,148.47,6.3057]
[1723636511010,12.17,148.52,148.47,6.3057]
[1723636511630,12.17,148.5,148.47,6.3057]
[1723636512157,12.17,148.48,148.46,0.8445855]
[1723636512696,0.12549,148.47,148.46,0.8445855]
[1723636513129,0.50196,148.47,148.46,0.8445855]
[1723636513640,0.12549,148.46,148.39,6.444]
[1723636513946,12.17,148.41,148.39,6.444]
[1723636515524,12.17,148.41,148.37,15.9242]
[1723636516039,0.25098,148.46,148.37,15.9242]
[1723636516336,12.17,148.43,148.37,15.9242]
[1723636517634,12.17,148.41,148.37,15.9242]
[1723636518850,12.17,148.39,148.37,15.9242]
[1723636519011,12.17,148.39,148.35,6.6272]
[1723636520226,0.12549,148.36,148.31,0.8445855]
[1723636520425,12.17,148.35,148.31,0.8445855]
[1723636521025,12.17,148.33,148.31,0.8445855]
[1723636521659,12.17,148.35,148.31,0.8445855]
[1723636521849,0.12549,148.38,148.31,0.8445855]
[1723636522045,30.58,148.38,148.31,0.8445855]
[1723636522254,30.58,148.36,148.31,0.8445855]
[1723636522554,30.58,148.33,148.31,0.8445855]
[1723636522756,0.12549,148.32,148.31,0.8445855]
[1723636522958,45.50196,148.32,148.21,22.0852]
[1723636523255,0.12549,148.26,148.21,22.0852]
[1723636523465,30.58,148.27,148.17,22.0785]
[1723636523669,30.58,148.25,148.17,22.0785]
[1723636524744,0.37647,148.24,148.17,22.0785]
[1723636524939,0.12549,148.26,148.17,22.0785]
[1723636525261,30.83098,148.25,148.17,22.0785]
[1723636525429,0.12549,148.24,148.17,22.0785]
[1723636525637,0.12549,148.26,148.17,21.5785]
[1723636525837,0.12549,148.25,148.17,21.5785]
[1723636526048,0.25098,148.25,148.17,21.5785]
[1723636526250,30.83098,148.25,148.17,21.5785]
[1723636526463,0.25098,148.26,148.17,21.5785]
[1723636526664,30.70549,148.27,148.17,21.5785]
[1723636527140,30.70549,148.27,148.18,45.0]
[1723636527333,0.37647,148.26,148.17,21.5785]
[1723636527856,0.12549,148.24,148.17,21.5785]
[1723636528028,0.37647,148.24,148.17,21.5785]
[1723636529147,30.58,148.23,148.16,0.8445855]
[1723636529354,0.37647,148.22,148.16,0.8445855]
[1723636529668,0.12549,148.22,148.16,0.8445855]
[1723636529871,0.37647,148.23,148.16,0.8445855]
[1723636530153,0.12549,148.22,148.16,0.8445855]
[1723636530926,30.95647,148.23,148.16,0.8445855]
[1723636531132,45.12549,148.22,148.16,0.8445855]
[1723636531342,0.37647,148.21,148.16,0.8445855]
[1723636531565,0.25098,148.21,148.16,0.8445855]
[1723636532665,30.58,148.25,148.16,0.8445855]
[1723636532966,30.58,148.28,148.16,31.4245855]
[1723636533267,30.58,148.3,148.17,45.37647]
[1723636533442,30.58,148.3,148.16,31.4245855]
[1723636533765,30.58,148.28,148.16,0.8445855]
[1723636534135,30.58,148.28,148.16,31.4245855]
[1723636534747,30.58,148.28,148.17,45.0]
[1723636535235,0.12549,148.26,148.17,45.0]
[1723636535438,0.12549,148.26,148.16,31.4245855]
[1723636535650,0.37647,148.26,148.16,31.4245855]
[1723636536165,0.37647,148.26,148.17,45.0]
[1723636536545,30.58,148.3,148.18,30.58]
[1723636536743,258.9,148.32,148.22,30.58]
[1723636536947,30.58,148.33,148.22,30.58]
[1723636537149,7.00859149,148.32,148.2,15.3686]
[1723636537355,7.00859149,148.32,148.21,45.0]
[1723636537560,30.58,148.33,148.21,45.0]
[1723636538264,7.00974058,148.34,148.23,0.12549]
[1723636538467,7.00974058,148.34,148.23,30.70549]
[1723636538691,30.58,148.37,148.26,15.3686]
[1723636539461,296.48640988,148.39,148.27,30.58]
[1723636539664,37.58640988,148.39,148.28,45.0]
[1723636540055,7.00640988,148.39,148.28,45.0]
[1723636540572,412.28,148.41,148.3,6.3039]
[1723636540764,412.28,148.41,148.31,45.0]
[1723636540945,412.40355796,148.41,148.3,6.3039]
[1723636541147,30.58,148.39,148.3,6.3039]
[1723636541356,30.58,148.37,148.3,6.3039]
[1723636542181,388.70451886,148.41,148.3,6.3039]
[1723636542182,30.58,148.39,148.3,6.3039]
[1723636543578,30.58,148.39,148.31,45.0]
[1723636543771,30.58,148.39,148.3,6.3039]
[1723636544783,45.50196,148.38,148.3,6.3039]
[1723636545292,0.12549,148.36,148.3,6.3039]
[1723636545455,0.25098,148.36,148.3,6.3039]
[1723636546089,0.25098,148.38,148.3,6.3039]
[1723636546265,30.58,148.39,148.3,6.3039]
[1723636546589,37.58451886,148.41,148.3,6.3039]
[1723636546890,37.58451886,148.41,148.32,15.38]
[1723636548161,30.58,148.41,148.32,15.38]
[1723636548374,0.12549,148.4,148.32,15.38]
[1723636548662,30.58,148.37,148.32,15.38]
[1723636549587,0.12549,148.36,148.32,15.38]
[1723636549789,0.37647,148.36,148.32,15.38]
[1723636550177,30.45647,148.37,148.32,15.38]
[1723636552790,0.12549,148.36,148.32,15.38]
[1723636552988,30.45647,148.37,148.32,15.38]
[1723636553176,0.37647,148.38,148.32,15.38]
[1723636553374,30.58,148.39,148.32,15.38]
[1723636553574,265.9070163,148.44,148.32,15.38]
[1723636553575,30.58,148.41,148.32,15.38]
[1723636554673,0.25098,148.4,148.32,15.38]
[1723636555183,0.25098,148.39,148.32,15.38]
[1723636555362,0.12549,148.39,148.32,15.38]
[1723636555570,0.37647,148.4,148.32,15.38]
[1723636555870,0.12549,148.4,148.32,15.38]
[1723636556082,0.25098,148.4,148.32,15.38]
[1723636556795,7.00717213,148.42,148.32,15.38]
[1723636556965,258.9,148.44,148.33,6.3601]
[1723636557161,30.58,148.45,148.34,45.12549]
[1723636557361,412.28,148.47,148.35,16.4766]
[1723636557589,419.28616424,148.47,148.35,16.4766]
[1723636557790,30.58,148.45,148.35,16.4766]
[1723636558486,419.28616424,148.47,148.37,6.3012]
[1723636559074,37.58616424,148.47,148.37,6.3012]
[1723636559794,37.58616424,148.47,148.38,45.0]
[1723636560169,37.58616424,148.47,148.37,6.3012]
[1723636560894,0.12549,148.46,148.37,6.3012]
[1723636561396,37.58616424,148.47,148.38,45.0]
[1723636561595,30.58,148.47,148.38,45.0]
[1723636564675,0.37647,148.48,148.38,45.0]
[1723636564877,30.58,148.49,148.38,45.0]
[1723636565084,30.58,148.49,148.4,15.1383]
[1723636565497,381.7,148.53,148.4,15.1383]
[1723636565498,33.25875795,148.51,148.4,15.1383]
[1723636565694,33.25875795,148.51,148.41,45.0]
[1723636566391,30.58,148.51,148.42,6.0658]
[1723636566588,381.7,148.53,148.43,45.0]
[1723636566589,30.58,148.53,148.43,45.0]
[1723636567973,30.58,148.53,148.44,15.2444]
[1723636568376,30.58,148.55,148.45,45.0]
[1723636569478,0.50196,148.54,148.45,45.0]
[1723636570074,0.12549,148.52,148.44,15.2444]
[1723636570270,30.58,148.51,148.44,15.2444]
[1723636571206,30.58,148.49,148.44,15.2444]
[1723636571507,0.12549,148.48,148.44,15.2444]
[1723636572080,30.58,148.47,148.42,6.0658]
[1723636572279,30.58,148.45,148.4,16.279]
[1723636572492,45.50196,148.46,148.4,16.279]
[1723636572493,30.58,148.43,148.4,16.279]
[1723636576003,30.58,148.43,148.38,6.1779]
[1723636576302,0.37647,148.42,148.38,6.1779]
[1723636576607,30.58,148.41,148.36,15.119]
[1723636576902,0.12549,148.4,148.36,15.119]
[1723636577101,30.58,148.39,148.36,15.119]
[1723636577684,30.58,148.39,148.34,6.2742]
[1723636578005,0.12549,148.38,148.34,6.2742]
[1723636578306,30.58,148.37,148.33,16.1159]
[1723636579882,30.58,148.37,148.3,6.5516]
[1723636580397,30.58,148.35,148.29,16.1159]
[1723636580879,30.58,148.33,148.29,16.1159]
[1723636581092,30.58,148.33,148.26,6.5516]
[1723636581287,0.25098,148.32,148.26,6.5516]
[1723636582108,0.12549,148.31,148.26,6.5516]
[1723636582296,30.58,148.33,148.26,6.5516]
[1723636582502,0.25098,148.34,148.26,6.5516]
[1723636582727,30.58,148.31,148.26,6.5516]
[1723636583513,0.12549,148.32,148.26,6.5516]
[1723636584198,38.63647,148.33,148.26,6.5516]
[1723636584399,0.37647,148.33,148.26,6.5516]
[1723636584618,0.25098,148.33,148.26,6.5516]
[1723636585097,9.6844161,148.37,148.26,6.5516]
[1723636585098,45.25833718,148.37,148.26,6.5516]
[1723636585300,38.26,148.37,148.26,6.5516]
[1723636586309,45.50196,148.36,148.26,6.5516]
[1723636587617,0.12549,148.34,148.26,6.5516]
[1723636587814,45.50196,148.34,148.26,6.5516]
[1723636589506,0.50196,148.34,148.26,6.5516]
[1723636590707,0.25098,148.34,148.26,6.5516]
[1723636590933,0.12549,148.35,148.26,6.5516]
[1723636591216,0.12549,148.32,148.26,6.5516]
[1723636591521,45.37647,148.32,148.26,6.5516]
[1723636591724,0.12549,148.31,148.26,6.5516]
[1723636591914,0.25098,148.31,148.26,6.5516]
[1723636592248,0.12549,148.26,148.16,24.1716245]
[1723636592603,0.25098,148.26,148.16,24.1716245]
[1723636593125,0.25098,148.25,148.16,24.1716245]
[1723636593305,0.12549,148.24,148.16,24.1716245]
[1723636593513,0.25098,148.25,148.16,24.1716245]
[1723636594121,0.25098,148.26,148.16,24.1716245]
[1723636594626,0.12549,148.28,148.17,15.7213]
[1723636594802,0.50196,148.28,148.17,15.7213]
[1723636595302,45.50196,148.28,148.17,15.7213]
[1723636595926,52.50261807,148.28,148.17,15.7213]
[1723636597125,38.26,148.27,148.17,15.7213]
[1723636597304,0.25098,148.26,148.17,15.7213]
[1723636598026,7.25163807,148.28,148.17,15.7213]
[1723636598209,38.26,148.29,148.19,6.1345]
[1723636599623,0.12549,148.28,148.19,6.1345]
[1723636599833,6.99982822,148.32,148.23,16.4996]